lending/lending_fUSD_20240207
["ID","MTS","AMOUNT","RATE_DAILY","PERIOD"]
[313411975,1707327031949,-33785.33331125,0.00032438,2]
[313411976,1707327031958,-7513.35583929,0.00032439,2]
[313411977,1707327031967,-355.60856944,0.00032448,2]
[313411978,1707327031976,-202.77097058,0.00032448,4]
[313411979,1707327031985,-415.64467543,0.00032449,4]
[313411980,1707327031994,-3191.21890446,0.0003245,7]
[313411981,1707327032003,-2010.2615551,0.0003245,7]
[313411982,1707327032013,-1028.50798586,0.0003245,7]
[313411983,1707327032022,-90437.17292762,0.0003245,7]
[313411984,1707327032032,-162.78791501,0.000325,2]
[313411985,1707327032041,-252.47,0.000326,2]
[313411986,1707327032050,-205.0,0.00032775,2]
[313411987,1707327032059,-206.0,0.00032775,2]
[313411988,1707327032069,-378.31515636,0.000329,2]
[313411989,1707327032078,-203.99838507,0.00032991,4]
[313411990,1707327032086,-1467.02299146,0.00032991,4]
[313411991,1707327032095,-500.0,0.00032991,4]
[313411992,1707327032104,-452.90403359,0.00033,2]
[313411993,1707327032113,-155.16,0.000337,2]
[313411994,1707327032122,-155.16,0.000337,2]
[313411995,1707327032131,-155.16,0.000337,2]
[313411996,1707327032140,-155.16,0.000337,2]
[313411997,1707327032150,-155.16,0.000337,2]
[313411998,1707327032159,-155.16,0.000337,2]
[313411999,1707327032168,-155.16,0.000337,2]
[313412000,1707327032177,-155.16,0.000337,2]
[313412001,1707327032186,-240.82454042,0.00034999,4]
[313412002,1707327032196,-165.0,0.00035,2]
[313412003,1707327032205,-165.0,0.00035,2]
[313412004,1707327032214,-1000.0,0.00036131,2]
[313412005,1707327032224,-153.45600266,0.00036288,2]
[313412006,1707327032233,-250.0,0.00036347,2]
[313412007,1707327032242,-23900.0,0.00036347,2]
[313412008,1707327032251,-273.61,0.00036477,2]
[313412009,1707327032261,-74476.8072514,0.00037,4]
[313412010,1707327032270,-150.0,0.00037248,7]
[313412011,1707327032282,-159.68,0.00038085,2]
[313412012,1707327032291,-155.0,0.00038099,4]
[313412013,1707327032301,-64219.13895176,0.000381,2]
[313412014,1707327032318,-255.4812832,0.000381,2]
[313412015,1707327032330,-4352.33042551,0.000381,2]
[313412016,1707327032395,-520.68,0.000381,2]
[313412073,1707327037881,-5104.29387289,0.000381,2]
[313412074,1707327037898,-703.75012937,0.000381,2]
[313412075,1707327037910,-8843.17018334,0.000381,2]
[313412076,1707327037941,-28430.10641025,0.000381,2]
[313412078,1707327037954,-48242.69534368,0.000381,2]
[313412080,1707327037963,-150.0,0.000381,7]
[313412082,1707327037973,-155.16,0.000382,3]
[313412084,1707327037982,-155.16,0.000382,3]
[313412086,1707327037991,-155.16,0.000382,3]
[313412088,1707327038001,-155.16,0.000382,3]
[313412090,1707327038010,-155.16,0.000382,3]
[313412092,1707327038020,-155.16,0.000382,3]
[313412094,1707327038030,-155.16,0.000382,3]
[313412096,1707327038040,-155.16,0.000382,3]
[313412098,1707327038049,-150.0,0.00038356,2]
[313412100,1707327038058,-177.189,0.00038459,2]
[313412102,1707327038067,-517.4136,0.00038459,2]
[313412104,1707327038076,-6419.09669545,0.00038459,2]
[313412108,1707327038110,-750.15,0.00038459,2]
[313412111,1707327038122,-2019.8,0.00038459,2]
[313412113,1707327038133,-1207.6,0.00038459,2]
[313412115,1707327038145,-1076.7,0.00038459,2]
[313412117,1707327038156,-305.51235568,0.00038459,2]
[313412120,1707327038167,-9729.1938462,0.00038459,2]
[313412123,1707327038191,-650.87956608,0.00038459,2]
[313412327,1707327040154,-12033.41566271,0.00038459,2]
[313412330,1707327040166,-863.12202927,0.00038459,2]
[313412332,1707327040178,-4265.39244857,0.00038459,2]
[313412390,1707327040808,-251.57324471,0.00038099,4]
[313412392,1707327040819,-833.15838959,0.00038459,2]
[313412445,1707327041312,-2654.02671173,0.00038459,2]
[313412449,1707327041342,-1103.2385,0.00038459,2]
[313412451,1707327041358,-1758.93979561,0.00038459,2]
[313412454,1707327041372,-645.07210633,0.00038459,2]
[313412456,1707327041385,-468.34251136,0.00038459,2]
[313412458,1707327041398,-690.58026146,0.00038459,2]
[313412461,1707327041413,-269.2302333,0.00038459,2]
[313412463,1707327041425,-260.5742158,0.00038459,2]
[313412466,1707327041436,-5224.73432129,0.00038459,2]
[313412468,1707327041448,-2392.30389745,0.00038459,2]
[313412478,1707327041536,-870.92,0.00038458,4]
[313412480,1707327041549,-1466.88073729,0.00038458,4]
[313412482,1707327041557,-5467.35791784,0.00038459,2]
[313412578,1707327042575,-297.0714875,0.00038099,4]
[313412579,1707327042587,-1077.97871243,0.00038099,4]
[313412580,1707327042596,-1086.1185791,0.00038458,4]
[313412581,1707327042608,-1414.41815282,0.00038458,4]
[313412582,1707327042624,-536.37733122,0.00038458,4]
[313412583,1707327042633,-904.63358774,0.00038458,2]
[313412584,1707327042643,-174.62906648,0.00038458,4]
[313412585,1707327042652,-202.77097058,0.00038458,4]
[313412586,1707327042662,-15818.24751851,0.00038459,2]
[313412587,1707327042673,-13035.327277,0.00038459,2]
[313412588,1707327042701,-2781.10583877,0.00038459,2]
[313412589,1707327042711,-206.7629,0.00038459,2]
[313412590,1707327042721,-19.35382353,0.00038472,2]
[313412591,1707327042732,-130.64617647,0.00038472,2]
[313412592,1707327042742,-2603.04355291,0.00038636,2]
[313412593,1707327042751,-164.7,0.00038718,2]
[313412594,1707327042760,-250.0,0.00038718,2]
[313412595,1707327042769,-273.61,0.00038741,2]
[313412596,1707327042778,-163.03,0.00038755,2]
[313412597,1707327042791,-283.1821562,0.0003898,2]
[313412598,1707327042800,-1357.51705999,0.00039,2]
[313412599,1707327042809,-150.0,0.00039376,2]
[313412600,1707327042819,-20924.21305443,0.0003988,2]
[313412601,1707327042831,-189.97244192,0.0003988,2]
[313412602,1707327042840,-180.0,0.00039981,2]
[313412603,1707327042850,-165.0,0.0004,2]
[313412604,1707327042859,-1000.0,0.00040145,2]
[313412605,1707327042868,-150.97,0.00040156,2]
[313412606,1707327042877,-150.0,0.00040395,2]
[313412607,1707327042887,-963.23287594,0.00041,2]
[313412608,1707327042897,-273.61,0.00041005,2]
[313412609,1707327042906,-4000.0,0.00041096,30]
[313412610,1707327042915,-152.44,0.00041096,2]
[313412611,1707327042925,-1798.54,0.00041375,5]
[313412613,1707327042934,-150.0,0.00041415,2]
[313412615,1707327042945,-150.97,0.00041526,2]
[313412617,1707327042954,-12649.80437716,0.000419,30]
[313412620,1707327042979,-466.25000025,0.000419,30]
[313412624,1707327043020,-262.138,0.00037589,2]
[313412626,1707327043030,-102.63299673,0.000419,30]
[313412635,1707327045555,-1000.0,0.00036247,2]
[313412638,1707327045565,-164.621475,0.00038457,4]
[313412641,1707327045575,-417.88846308,0.00038458,4]
[313412644,1707327045585,-251.32016081,0.00038458,4]
[313412646,1707327045594,-155.30741816,0.00038458,4]
[313412648,1707327045604,-159.24196843,0.00038458,4]
[313412650,1707327045613,-1254.00428859,0.00038458,4]
[313412651,1707327045622,-1460.31426424,0.000419,30]
[313412652,1707327045632,-502.780568,0.00042,14]
[313412653,1707327045642,-2476.56354704,0.00042,4]
[313412654,1707327045651,-1802.33,0.00042,5]
[313412655,1707327045660,-250.0,0.00042083,2]
[313412656,1707327045670,-177.04,0.00042183,2]
[313412657,1707327045679,-504.85247061,0.00042183,2]
[313412658,1707327045689,-1000.0,0.000422,2]
[313412659,1707327045699,-150.0,0.00042435,2]
[313412660,1707327045709,-163.03,0.0004263,2]
[313412661,1707327045719,-155.16,0.000427,4]
[313412662,1707327045729,-155.16,0.000427,4]
[313412663,1707327045738,-155.16,0.000427,4]
[313412664,1707327045747,-155.16,0.000427,4]
[313412665,1707327045757,-155.16,0.000427,4]
[313412666,1707327045768,-155.16,0.000427,4]
[313412667,1707327045777,-155.16,0.000427,4]
[313412668,1707327045788,-155.16,0.000427,4]
[313412669,1707327045797,-198.984442,0.00042705,9]
[313412670,1707327045807,-177.04,0.00042731,2]
[313412671,1707327045817,-3152.92101953,0.00042898,4]
[313412672,1707327045826,-200.0,0.000429,53]
[313412673,1707327045837,-531.45545055,0.0004297,2]
[313412674,1707327045846,-152.98934195,0.0004297,17]
[313412675,1707327045856,-1492.4808,0.00042973,2]
[313412676,1707327045865,-184.90334708,0.00042973,17]
[313412677,1707327045874,-5000.0,0.0004298,3]
[313412678,1707327045883,-4102.9362,0.00042982,2]
[313412679,1707327045893,-4623.34189757,0.00042982,2]
[313412687,1707327046050,-3640.41020243,0.00042982,2]
[313412689,1707327046060,-513.51411336,0.00042982,5]
[313412691,1707327046070,-153.45600266,0.00042983,2]
[313412693,1707327046079,-158.13885783,0.00042994,30]
[313412694,1707327046088,-583.32254342,0.00042995,30]
[313412696,1707327046098,-279.88780465,0.00042996,4]
[313412698,1707327046107,-258.00139996,0.00042996,4]
[313412699,1707327046117,-155.63450126,0.00042997,4]
[313412701,1707327046126,-156.85887799,0.00042997,4]
[313412703,1707327046134,-235.11918748,0.00042997,4]
[313412704,1707327046143,-242.42076785,0.00042997,4]
[313412706,1707327046153,-432.40059987,0.00042997,7]
[313412708,1707327046162,-924.290853,0.00042997,4]
[313412710,1707327046173,-292.81919456,0.00042997,4]
[313412712,1707327046183,-344.65578857,0.00042997,4]
[313412713,1707327046192,-162.18427739,0.00042998,4]
[313412715,1707327046201,-157.62599329,0.00042998,4]
[313412717,1707327046210,-156.72371405,0.00042998,4]
[313412718,1707327046219,-156.56440995,0.00042998,4]
[313412720,1707327046229,-177.3874531,0.00042998,4]
[313412722,1707327046238,-196.6804573,0.00042998,4]
[313412724,1707327046248,-200.0,0.00042999,2]
[313412725,1707327046258,-544.47280916,0.00042999,4]
[313412727,1707327046267,-162.58114337,0.00042999,4]
[313412729,1707327046279,-1233.38050537,0.00043,7]
[313412731,1707327046295,-500.0,0.00043,14]
[313412733,1707327046305,-810.18251593,0.00043,30]
[313412735,1707327046315,-87897.37482796,0.00043069,3]
[313412737,1707327046329,-3549.59941158,0.00043069,3]
[313412740,1707327046354,-348.81942987,0.00038457,4]
[313412742,1707327046364,-68.82557013,0.00043069,3]
[313412749,1707327046436,-280.21267964,0.00038457,4]
[313412751,1707327046448,-91.68162006,0.00038457,4]
[313412753,1707327046458,-194.29337994,0.00043069,3]
[313412755,1707327046470,-731.93083644,0.00043069,3]
[313412756,1707327046481,-2689.70046109,0.00043069,3]
[313412979,1707328231796,-1208.66881038,0.00024967,2]
[313412980,1707328231806,-272.0452652,0.00024968,2]
[313412981,1707328231816,-175.28914559,0.00024969,2]
[313412982,1707328231826,-2618.59677883,0.00024969,2]
[313412983,1707328232042,-1742.0,0.00024969,2]
[313412995,1707328237781,-3455.45882149,0.00024969,2]
[313412996,1707328237791,-276.79561449,0.0002497,2]
[313412997,1707328237800,-214.6061358,0.00024979,2]
[313412998,1707328237810,-18453.13942822,0.0002498,2]
[313412999,1707328237923,-37593.2716998,0.0002498,2]
[313413000,1707328237933,-350.0,0.00025,3]
[313413001,1707328238112,-12777.8563,0.0002696,2]
[313413004,1707328238158,-400.0,0.00027,3]
[313413006,1707328238168,-758.62,0.00027,2]
[313413008,1707328238177,-150.99,0.00027,2]
[313413009,1707328238187,-199.46794181,0.0002705,2]
[313413011,1707328238196,-646.47648549,0.0002705,2]
[313413012,1707328238205,-33926.29059553,0.00027051,2]
[313413014,1707328238215,-357.69,0.00027067,2]
[313413016,1707328238224,-600.0,0.00027067,2]
[313413018,1707328238233,-371.05,0.00027903,2]
[313413020,1707328238243,-374.92,0.00029377,2]
[313413022,1707328238252,-1237.23,0.00029416,2]
[313413024,1707328238261,-3566.97,0.00029417,2]
[313413026,1707328238270,-153.79,0.00029442,2]
[313413027,1707328238279,-23900.0,0.00029454,2]
[313413029,1707328238290,-250.0,0.00029484,2]
[313413032,1707328238299,-250.0,0.00029501,2]
[313413033,1707328238309,-250.0,0.00029505,2]
[313413035,1707328238318,-2000.0,0.00029551,2]
[313413038,1707328238328,-1237.23,0.00029586,2]
[313413039,1707328238338,-150.0,0.00029595,2]
[313413041,1707328238348,-1237.23,0.00029756,2]
[313413043,1707328238357,-634.95,0.000299,2]
[313413045,1707328238366,-1237.23,0.00029926,2]
[313413047,1707328238375,-175.23,0.00029999,2]
[313413049,1707328238385,-2147.0,0.0003,2]
[313413051,1707328238394,-155.0,0.0003,2]
[313413053,1707328238404,-1162.63,0.0003,2]
[313413055,1707328238414,-603.1,0.0003,2]
[313413057,1707328238423,-200.0,0.00030046,2]
[313413059,1707328238433,-175.23,0.00030081,2]
[313413061,1707328238442,-1237.23,0.00030096,2]
[313413063,1707328238452,-1500.0,0.00030137,7]
[313413064,1707328238461,-175.23,0.00030163,2]
[313413065,1707328238471,-371.05,0.00030167,2]
[313413066,1707328238480,-400.0,0.00030219,2]
[313413067,1707328238490,-175.23,0.00030246,2]
[313413068,1707328238499,-1237.23,0.00030266,2]
[313413069,1707328238508,-175.23,0.00030328,2]
[313413070,1707328238517,-499.99,0.00030355,2]
[313413071,1707328238527,-175.23,0.0003041,2]
[313413072,1707328238536,-1237.23,0.00030436,2]
[313413073,1707328238546,-600.0,0.0003045,2]
[313413074,1707328238555,-175.23,0.00030492,2]
[313413075,1707328238564,-175.23,0.00030575,2]
[313413076,1707328238573,-1237.23,0.00030606,2]
[313413077,1707328238583,-175.23,0.00030657,2]
[313413079,1707328238592,-175.23,0.00030739,2]
[313413081,1707328238601,-1237.23,0.00030776,2]
[313413083,1707328238610,-175.23,0.00030821,2]
[313413085,1707328238619,-374.92,0.00030845,2]
[313413087,1707328238628,-175.23,0.00030904,2]
[313413088,1707328238638,-1237.23,0.00030946,2]
[313413090,1707328238650,-175.23,0.00030986,2]
[313413092,1707328238659,-175.23,0.00031068,2]
[313413095,1707328238668,-175.23,0.00031151,2]
[313413096,1707328238678,-175.23,0.00031233,2]
[313413099,1707328238688,-175.23,0.00031315,2]
[313413101,1707328238697,-175.23,0.00031397,2]
[313413102,1707328238706,-175.23,0.0003148,2]
[313413104,1707328238715,-175.23,0.00031562,2]
[313413106,1707328238727,-4663.65735793,0.00031981,7]
[313413109,1707328238736,-246.29723664,0.00031981,7]
[313413110,1707328238746,-1387.59825567,0.00031981,7]
[313413113,1707328238755,-732.14763513,0.00031981,7]
[313413114,1707328238765,-211.05222939,0.00031981,7]
[313413117,1707328238774,-651.84,0.00032273,2]
[313413119,1707328238784,-2479.3575,0.00032287,2]
[313413121,1707328238793,-374.92,0.00032314,2]
[313413123,1707328238802,-2095.88819662,0.00032338,4]
[313413124,1707328238811,-1000.0,0.0003235,2]
[313413127,1707328238821,-230.4933,0.0003235,2]
[313413128,1707328238830,-2500.0,0.0003235,2]
[313413130,1707328238839,-1085.8,0.00032387,2]
[313413132,1707328238848,-180.0,0.0003241,2]
[313413134,1707328238858,-371.05,0.00032431,2]
[313413136,1707328238867,-10053.1962135,0.0003245,7]
[313413139,1707328238877,-8041.54280239,0.0003245,7]
[313413140,1707328238887,-55753.80708638,0.0003245,7]
[313413200,1707328239435,-8261.15939784,0.0003245,7]
[313413202,1707328239444,-42369.11881683,0.0003245,7]
[313413204,1707328239453,-150.0,0.000328,2]
[313413206,1707328239463,-272.77624261,0.000334,2]
[313413208,1707328239472,-651.84,0.00033414,2]
[313413211,1707328239481,-22930.59537743,0.0003349,4]
[313413214,1707328239493,-22923.31600777,0.0003349,4]
[313413216,1707328239502,-6431.89199954,0.000335,2]
[313413220,1707328239517,-2186.70681062,0.000335,2]
[313413223,1707328239529,-2338.6711298,0.000335,2]
[313413231,1707328239568,-1481.07984364,0.000335,2]
[313413234,1707328239580,-4359.47154717,0.000335,2]
[313413241,1707328239613,-431.95013453,0.000335,2]
[313413243,1707328239624,-108705.65093238,0.000335,2]
[313413245,1707328239637,-294.08548322,0.000335,2]
[313413248,1707328239657,-35000.85390835,0.000335,2]
[313413256,1707328239723,-4855.83992183,0.000335,2]
[313413267,1707328240504,-2397.80544041,0.00024968,2]
[313413268,1707328240514,-14951.49382647,0.000335,2]
[313413269,1707328240526,-17967.12100372,0.000335,2]
[313413270,1707328240540,-1032.09292142,0.000335,2]
[313413271,1707328240569,-13800.3445567,0.000335,2]
[313413272,1707328240581,-3006.74093462,0.000335,2]
[313413273,1707328240590,-155.27,0.000337,2]
[313413274,1707328240600,-155.27,0.000337,2]
[313413275,1707328240609,-155.27,0.000337,2]
[313413276,1707328240618,-374.92,0.00033783,2]
[313413277,1707328240628,-1834.15645541,0.00033824,5]
[313413278,1707328240637,-600.0,0.00033834,2]
[313413279,1707328240650,-400.0,0.00033997,2]
[313413280,1707328240660,-1085.8,0.00034031,2]
[313413281,1707328240670,-150.0,0.00034548,10]
[313413282,1707328240679,-651.84,0.00034555,2]
[313413283,1707328240689,-371.05,0.00034694,2]
[313413284,1707328240698,-374.92,0.00035252,2]
[313413285,1707328240707,-1834.15645541,0.00035606,8]
[313413286,1707328240716,-1085.8,0.00035675,2]
[313413287,1707328240726,-651.84,0.00035697,2]
[313413288,1707328240738,-1834.15645541,0.00035809,8]
[313413289,1707328240747,-1834.15645541,0.00036623,9]
[313413290,1707328240756,-651.84,0.00036838,2]
[313413291,1707328240765,-371.05,0.00036958,2]
[313413292,1707328240775,-74476.8072514,0.00037,4]
[313413293,1707328240784,-600.0,0.00037217,2]
[313413294,1707328240793,-1085.8,0.00037319,2]
[313413295,1707328240802,-400.0,0.00037774,2]
[313413296,1707328240812,-150.0,0.000379,27]
[313413297,1707328240821,-1834.15645541,0.00037969,10]
[313413298,1707328240829,-651.84,0.0003798,2]
[313413299,1707328240838,-155.27,0.000382,3]
[313413300,1707328240848,-155.27,0.000382,3]
[313413301,1707328240856,-155.27,0.000382,3]
[313413302,1707328240866,-357.69,0.000383,2]
[313413303,1707328240875,-150.0,0.00038356,2]
[313413304,1707328240884,-507.7088,0.00038359,2]
[313413305,1707328240893,-202.0,0.000384,27]
[313413306,1707328240903,-2786.97742156,0.00038457,4]
[313413307,1707328240912,-1588.97256459,0.00038457,2]
[313413308,1707328240921,-157.72882165,0.00038457,4]
[313413309,1707328240930,-814.54044808,0.0003888,2]
[313413310,1707328240940,-814.54044801,0.0003888,2]
[313413311,1707328240948,-814.54044801,0.0003888,2]
[313413312,1707328240958,-814.54044801,0.0003888,2]
[313413313,1707328240966,-1085.8,0.00038963,2]
[313413314,1707328240975,-651.84,0.00039121,2]
[313413315,1707328240985,-371.05,0.00039222,2]
[313413316,1707328240994,-150.0,0.00039366,2]
[313413317,1707328241003,-155.0,0.00039621,2]
[313413318,1707328241013,-235.89308219,0.000399,2]
[313413319,1707328241022,-814.54044801,0.00039973,2]
[313413320,1707328241031,-91193.3323922,0.0003999,5]
[313413321,1707328241042,-100000.0,0.0004,20]
[313413322,1707328241051,-279.69091136,0.0004,2]
[313413323,1707328241060,-150.0,0.00040375,2]
[313413324,1707328241069,-600.0,0.000406,2]
[313413325,1707328241078,-1085.8,0.00040607,2]
[313413326,1707328241088,-285.43770354,0.00040797,3]
[313413327,1707328241097,-250.8272,0.00040797,2]
[313413328,1707328241106,-514.9754732,0.00040797,5]
[313413329,1707328241116,-182386.664784,0.00040887,6]
[313413330,1707328241125,-235588.60069567,0.00040897,3]
[313413331,1707328241137,-232548.58425792,0.00040897,3]
[313413336,1707328241275,-276.79561449,0.00024968,2]
[313413337,1707328241286,-24.32189409,0.00040897,3]
[313413338,1707328241297,-855.2,0.00040897,3]
[313413374,1707328242830,-2174.7909,0.00040897,3]
[313413375,1707328242842,-13033.13634746,0.00040897,3]
[313413376,1707328242853,-4951.36085256,0.00040897,3]
[313413377,1707328242889,-589.2180302,0.00040897,3]
[313413378,1707328242900,-4012.70093016,0.00040897,3]
[313413379,1707328242952,-7425.38713068,0.00040897,3]
[313413380,1707328242963,-12517.57577332,0.00040897,3]
[313413381,1707328243065,-895.85658118,0.00040897,3]
[313413382,1707328243077,-10707.35000001,0.00040897,3]
[313413383,1707328243088,-9621.68144597,0.00040897,3]
[313413384,1707328243101,-671355.18363874,0.00040897,3]
[313413385,1707328243110,-500.0,0.00040897,2]
[313413386,1707328243120,-1186.1685,0.00040897,2]
[313413387,1707328243129,-39410.0927,0.00040897,2]
[313413388,1707328243137,-100000.0,0.00040897,2]
[313413389,1707328243147,-17974.20898575,0.00040897,2]
[313413406,1707328245763,-853.9740674,0.00040897,2]
[313413407,1707328245829,-314.16775639,0.00040897,2]
[313413408,1707328246014,-13568.50609046,0.00040897,2]
[313413409,1707328246023,-46431.20732954,0.00040897,2]
[313413421,1707328451424,2300.90603234,0.0002,2]
[313413422,1707328451450,4478.46396766,0.0002,2]
[313413446,1707328788383,19017.67593218,0.0002,2]
[313413456,1707328964978,164.06584013,0.00021979,2]
[313413457,1707328965628,421.50105747,0.00021979,2]
[313413458,1707328971053,331.89034259,0.000194,2]
[313413459,1707328971079,73.13619125,0.000194,2]
[313413460,1707328983588,421.50105747,0.00021979,2]
[313413461,1707328989040,403.6003256,0.0002132,2]
[313413462,1707329005605,19.21966587,0.00021979,2]
[313413463,1707329005630,402.2813916,0.00021979,2]
[313413464,1707329009041,403.6003256,0.0002132,2]
[313413465,1707329014457,111.57552299,0.00021979,2]
[313413466,1707329014479,252.28202512,0.00021979,2]
[313413467,1707329023599,421.50105747,0.00021979,2]
[313413468,1707329025057,243.6741576,0.0002132,2]
[313413469,1707329025083,158.11859898,0.0002132,2]
[313413470,1707329030431,362.44851157,0.00021979,2]
[313413472,1707329188276,196.89012964,0.00021873,2]
[313413473,1707329188301,108.33987036,0.00021873,2]
[313413731,1707329420770,-272.0452652,0.00022532,2]
[313413732,1707329420794,-1998.17120034,0.00022532,2]
[313413733,1707329420819,-200.0,0.00022533,2]
[313413734,1707329420842,-2511.13224161,0.000227,2]
[313413735,1707329420868,-194.46973088,0.00022796,2]
[313413736,1707329420893,-4824.18156197,0.00022798,2]
[313413748,1707329432180,-10095.21543803,0.00022798,2]
[313413749,1707329432190,-1103.2385,0.00022798,2]
[313413750,1707329432199,-276.79561449,0.00022853,2]
[313413751,1707329432208,-300.0,0.00022859,2]
[313413752,1707329432218,-1798.28617639,0.00022895,2]
[313413753,1707329432227,-210.3528914,0.00022895,2]
[313413754,1707329432236,-682.49883656,0.00022896,2]
[313413755,1707329432245,-297.0714875,0.00022896,2]
[313413756,1707329432254,-70248.25464627,0.00022897,2]
[313413757,1707329432264,-499.99,0.00022897,2]
[313413758,1707329432276,-19041.77739509,0.00022898,2]
[313413759,1707329432286,-115650.00754463,0.00022899,2]
[313413761,1707329432309,-289.19841951,0.00022899,2]
[313414076,1707329437956,-178.50805911,0.00022799,2]
[313414077,1707329437968,-435.15148276,0.00022895,2]
[313414079,1707329437988,-423.2307416,0.00022895,2]
[313414080,1707329438000,-182.66497102,0.00022895,2]
[313414081,1707329438011,-245.9846709,0.00022899,2]
[313414082,1707329438022,-3704.77177377,0.00022899,2]
[313414083,1707329438034,-125110.03759119,0.00022899,2]
[313414084,1707329438043,-313.33,0.00022899,2]
[313414085,1707329438054,-794.92293263,0.0002296,2]
[313414086,1707329438064,-3998.59477843,0.00022997,2]
[313414087,1707329438073,-1045.91992071,0.00022997,2]
[313414088,1707329438083,-2898.11299854,0.00022997,4]
[313414089,1707329438092,-246.99,0.00022997,2]
[313414090,1707329438101,-400.0,0.00022998,2]
[313414091,1707329438110,-1368.02087697,0.00022999,2]
[313414092,1707329438119,-42957.3971409,0.00022999,2]
[313414093,1707329438131,-4073.0204,0.00022999,2]
[313414094,1707329438144,-290.08119832,0.00022999,2]
[313414095,1707329438155,-1943.29667571,0.00022999,2]
[313414096,1707329438170,-45259.11786839,0.00022999,2]
[313414097,1707329438182,-27751.99208828,0.00022999,2]
[313414098,1707329438191,-302.55500336,0.00022999,2]
[313414099,1707329438200,-2369.49544259,0.00023,2]
[313414100,1707329438212,-61449.52347404,0.00023,2]
[313414101,1707329438231,-587.673,0.00023,2]
[313414102,1707329438242,-2745.76581385,0.00023,2]
[313414103,1707329438253,-4900.75780992,0.00023,2]
[313414104,1707329438264,-848.7923766,0.00023,2]
[313414105,1707329438277,-38495.2019999,0.00023,2]
[313414106,1707329438286,-156.58,0.00023461,2]
[313414107,1707329438295,-150.63,0.00023549,2]
[313414108,1707329438304,-156.58,0.00023555,2]
[313414109,1707329438315,-194.46973076,0.00023596,2]
[313414110,1707329438325,-23900.0,0.00023647,2]
[313414111,1707329438334,-156.58,0.00023649,2]
[313414112,1707329438343,-156.58,0.00023743,2]
[313414113,1707329438352,-156.58,0.00023837,2]
[313414114,1707329438362,-250.0,0.00023921,2]
[313414115,1707329438371,-156.58,0.00023931,2]
[313414116,1707329438380,-156.58,0.00024025,2]
[313414117,1707329438390,-156.58,0.0002412,2]
[313414118,1707329438399,-250.0,0.00024129,2]
[313414119,1707329438409,-305.23,0.00024137,2]
[313414120,1707329438418,-156.58,0.00024214,2]
[313414121,1707329438427,-2000.0,0.00024282,2]
[313414122,1707329438437,-156.58,0.00024308,2]
[313414123,1707329438446,-238.46,0.00024384,2]
[313414124,1707329438455,-194.46973076,0.00024397,2]
[313414125,1707329438464,-156.58,0.00024402,2]
[313414126,1707329438473,-156.58,0.00024496,2]
[313414127,1707329438482,-156.58,0.0002459,2]
[313414128,1707329438491,-156.58,0.00024684,2]
[313414129,1707329438501,-194.46973076,0.00025197,2]
[313414130,1707329438510,-160.0,0.00025607,2]
[313414131,1707329438519,-151.81,0.00025744,2]
[313414132,1707329438529,-194.46973076,0.00025997,2]
[313414133,1707329438538,-305.23,0.00026401,2]
[313414134,1707329438547,-250.0,0.00026723,2]
[313414135,1707329438556,-205.24,0.00026723,2]
[313414136,1707329438566,-840.0,0.00026723,2]
[313414137,1707329438575,-150.0,0.00026776,2]
[313414138,1707329438585,-194.46973076,0.00026798,2]
[313414139,1707329438594,-194.46973076,0.00027598,2]
[313414140,1707329438603,-150.63,0.00027659,2]
[313414141,1707329438612,-278.10084856,0.0002768,2]
[313414142,1707329438621,-194.46973076,0.00028398,2]
[313414143,1707329438630,-305.23,0.00028665,2]
[313414144,1707329438639,-220.2573698,0.00028679,2]
[313414145,1707329438648,-572.32080993,0.00028679,2]